bitfinex/quotes_SOLUSD_20250525
["timestamp","ask_amount","ask_price","bid_price","bid_amount"]
[1748202044942,4.34010754,172.13,172.11,16.21795376]
[1748202045834,4.34010754,172.12,172.11,16.21795376]
[1748202057652,4.34010754,172.12,172.1,16.21795376]
[1748202058053,16.21795376,172.16,172.1,16.21795376]
[1748202058258,4.33712799,172.15,172.1,16.21795376]
[1748202058851,12.00538512,172.14,172.1,16.21795376]
[1748202059654,12.00538512,172.14,172.11,16.21795376]
[1748202059850,12.00538512,172.14,172.06,88.1059]
[1748202060056,4.33712799,172.13,172.09,16.21795376]
[1748202060372,10.84311155,172.13,172.09,14.71795376]
[1748202060662,10.84311155,172.13,172.06,81.5]
[1748202060663,3.33109505,172.12,172.1,16.21795376]
[1748202060870,2.33109505,172.12,172.06,81.5]
[1748202061047,6.50598356,172.11,172.05,107.5]
[1748202061244,6.00598356,172.11,172.08,16.21795376]
[1748202061553,6.00598356,172.11,172.1,16.21795376]
[1748202061959,3.83716208,172.11,172.1,16.21795376]
[1748202062170,3.33716208,172.11,172.1,16.21795376]
[1748202063462,7.67571763,172.11,172.1,16.21795376]
[1748202070675,7.67571763,172.11,172.09,16.21795376]
[1748202071493,4.33855555,172.1,172.09,16.21795376]
[1748202073385,7.67372254,172.1,172.09,16.21795376]
[1748202074578,12.01639645,172.1,172.09,16.21795376]
[1748202078965,7.6778409,172.1,172.09,16.21795376]
[1748202080471,12.02256943,172.1,172.09,16.21795376]
[1748202084989,7.6778409,172.1,172.09,16.21795376]
[1748202087066,12.02241706,172.1,172.09,16.21795376]
[1748202088891,7.6778409,172.1,172.09,16.21795376]
[1748202096698,12.02423457,172.1,172.09,16.21795376]
[1748202105201,14.20017178,172.1,172.09,16.21795376]
[1748202121141,14.20017178,172.1,172.05,81.5]
[1748202121324,14.20017178,172.1,172.07,16.21795376]
[1748202121519,42.21795376,172.09,172.04,16.21795376]
[1748202121719,26.0,172.07,172.03,16.21795376]
[1748202121916,26.0,172.07,172.05,16.21795376]
[1748202122218,4.34639367,172.08,172.06,16.21795376]
[1748202122520,4.34639367,172.08,172.07,16.21795376]
[1748202123133,12.0312313,172.08,172.07,16.21795376]
[1748202123642,7.68483763,172.08,172.07,16.21795376]
[1748202124315,4.34967064,172.08,172.07,16.21795376]
[1748202127335,7.68918266,172.08,172.07,16.21795376]
[1748202127844,12.03779092,172.08,172.07,16.21795376]
[1748202130846,12.03779092,172.08,172.07,97.71795376]
[1748202131226,7.68918266,172.08,172.07,97.71795376]
[1748202131725,4.34967064,172.08,172.07,97.71795376]
[1748202157268,4.34967064,172.08,172.07,81.5]
[1748202157568,39.21727326,172.08,172.07,81.5]
[1748202158251,49.07835568,172.08,172.07,81.5]
[1748202158569,32.86040192,172.08,172.03,16.21795376]
[1748202158769,32.86040192,172.08,172.04,16.21795376]
[1748202158962,2.17390587,172.07,172.04,16.21795376]
[1748202159366,4.34754529,172.06,172.04,16.21795376]
[1748202159550,4.34967064,172.05,172.04,16.21795376]
[1748202159751,7.6893019,172.05,172.04,16.21795376]
[1748202161772,7.6893019,172.05,172.04,16.21795376]
[1748202163480,7.6893019,172.05,172.01,26.0]
[1748202163780,4.34967064,172.04,171.98,81.5]
[1748202164080,4.34967064,172.04,172.0,16.21795376]
[1748202164263,3.33963126,172.03,172.0,16.21795376]
[1748202164875,4.34967064,172.02,172.0,16.21795376]
[1748202165862,4.34967064,172.02,171.98,26.0]
[1748202166065,22.0673468,172.04,171.99,16.21795376]
[1748202166266,18.64964886,172.03,171.99,16.21795376]
[1748202167361,18.64964886,172.03,172.0,16.21795376]
[1748202167966,4.33674702,172.02,172.0,16.21795376]
[1748202168665,4.33674702,172.02,171.99,16.21795376]
[1748202169068,18.64964886,172.03,171.99,16.21795376]
[1748202171485,4.33319685,172.02,171.99,16.21795376]
[1748202171979,18.64964886,172.03,171.96,26.0]
[1748202172174,18.64964886,172.03,171.99,16.21795376]
[1748202173583,16.21795376,172.02,171.97,26.0]
[1748202173773,16.21795376,172.02,171.97,42.21795376]
[1748202173774,18.64964886,172.01,171.97,42.21795376]
[1748202174084,22.98014384,172.01,171.97,42.21795376]
[1748202174281,22.98014384,172.01,171.97,26.0]
[1748202174672,4.33049498,172.0,171.97,26.0]
[1748202174877,4.33049498,172.0,171.96,16.21795376]
[1748202175491,18.64964886,172.01,171.96,16.21795376]
[1748202176284,18.64964886,172.01,171.97,16.21795376]
[1748202176988,70.82,172.03,171.99,16.21795376]
[1748202177176,3.32274063,172.02,171.94,26.0]
[1748202177487,3.32274063,172.02,171.99,16.21795376]
[1748202177692,4.32552875,172.01,171.99,16.21795376]
[1748202178787,3.32274063,172.02,171.99,16.21795376]
[1748202179867,70.82,172.03,171.99,16.21795376]
[1748202180067,70.82,172.03,171.98,16.21795376]
[1748202180268,4.32413692,172.02,171.98,16.21795376]
[1748202180869,70.82,172.03,171.98,16.21795376]
[1748202181387,70.82,172.03,171.99,16.21795376]
[1748202181767,70.82,172.03,171.98,16.21795376]
[1748202183192,4.32333546,172.02,171.99,16.21795376]
[1748202183567,20.54128922,172.02,171.94,26.0]
[1748202183773,20.54128922,172.02,171.97,16.21795376]
[1748202184286,16.21795376,172.02,171.97,16.21795376]
[1748202185393,19.53806771,172.02,171.97,16.21795376]
[1748202186175,3.32011395,172.02,171.97,16.21795376]
[1748202186488,4.32301576,172.01,171.97,16.21795376]
[1748202188298,16.21795376,172.01,171.94,81.5]
[1748202188474,16.21795376,172.01,171.95,16.21795376]
[1748202188475,18.64964886,172.0,171.95,16.21795376]
[1748202189284,18.64964886,172.0,171.96,16.21795376]
[1748202189683,3.32011395,172.02,171.97,16.21795376]
[1748202189880,3.32011395,172.02,171.98,16.21795376]
[1748202190081,19.53806771,172.02,171.97,16.21795376]
[1748202191197,4.32386196,172.01,171.97,16.21795376]
[1748202192093,19.53806771,172.02,171.97,16.21795376]
[1748202193698,3.32011395,172.01,171.97,16.21795376]
[1748202193900,2.81391792,172.01,171.97,16.21795376]
[1748202194290,4.32546271,172.0,171.97,16.21795376]
[1748202195389,2.81391792,172.01,171.97,16.21795376]
[1748202197104,16.21795376,172.02,171.97,16.21795376]
[1748202198106,4.32968309,172.01,171.97,16.21795376]
[1748202198609,8.66096146,172.01,171.97,16.21795376]
[1748202199105,4.32968309,172.0,171.97,16.21795376]
[1748202199696,4.32968309,171.99,171.97,16.21795376]
[1748202200196,20.54923213,172.01,171.96,16.21795376]
[1748202200386,16.21795376,172.01,171.96,16.21795376]
[1748202201409,4.33526907,172.0,171.96,16.21795376]
[1748202201607,8.67318265,172.0,171.96,16.21795376]
[1748202202296,4.33526907,171.99,171.96,16.21795376]
[1748202203310,4.33526907,171.98,171.96,16.21795376]
[1748202204311,4.33979277,172.0,171.95,81.5]
[1748202204505,4.33979277,172.0,171.9,181.10140414]
[1748202204506,18.64964886,171.97,171.9,37.4842]
[1748202204705,18.64964886,171.97,171.92,16.21795376]
[1748202205010,51.07795376,171.99,171.94,16.21795376]
[1748202205214,4.34123891,171.96,171.94,16.21795376]
[1748202205911,4.33979277,171.98,171.94,16.21795376]
[1748202206114,4.33979277,171.98,171.95,16.21795376]
[1748202206305,4.33979277,171.97,171.94,16.21795376]
[1748202207008,4.33979277,171.97,171.95,16.21795376]
[1748202207517,34.86,171.99,171.95,16.21795376]
[1748202207702,4.34341724,171.98,171.95,16.21795376]
[1748202208397,3.33559755,171.97,171.95,16.21795376]
[1748202208801,4.34341724,171.96,171.95,16.21795376]
[1748202208999,4.34341724,171.96,171.9,183.85601504]
[1748202209201,4.34341724,171.96,171.95,16.21795376]
[1748202211221,7.68027172,171.96,171.95,16.21795376]
[1748202212919,7.68027172,171.96,171.9,118.9842]
[1748202213123,7.68027172,171.96,171.95,16.21795376]
[1748202215304,4.34341724,171.96,171.95,16.21795376]
[1748202216423,4.17217537,171.99,171.95,16.21795376]
[1748202216625,4.17217537,171.99,171.98,16.21795376]
[1748202216930,4.34723526,171.99,171.98,16.21795376]
[1748202217107,8.6944422,171.99,171.98,16.21795376]
[1748202218113,12.03328992,171.99,171.98,16.21795376]
[1748202218319,14.20736163,171.99,171.98,16.21795376]
[1748202226437,9.86015469,171.99,171.98,16.21795376]
[1748202226769,7.68608298,171.99,171.95,5.81563328]
[1748202226942,7.68608298,171.99,171.98,16.21795376]
[1748202232110,7.68608298,171.99,171.98,97.71795376]
[1748202232938,4.34723526,171.99,171.98,97.71795376]
[1748202233436,6.5208789,172.02,171.98,97.71795376]
[1748202233734,6.5208789,172.02,172.01,16.21795376]
[1748202234257,14.20569158,172.02,172.01,16.21795376]
[1748202234833,12.03206528,172.02,172.01,16.21795376]
[1748202242351,7.68481268,172.02,172.01,16.21795376]
[1748202256659,12.02785069,172.02,172.01,16.21795376]
[1748202258251,7.68124885,172.02,172.01,16.21795376]
[1748202258446,12.02483545,172.02,172.01,16.21795376]
[1748202259055,12.02483545,172.02,172.01,26.0]
[1748202259253,12.02483545,172.02,172.01,42.21795376]
[1748202259951,7.68179744,172.02,172.01,42.21795376]
[1748202261155,4.3435866,172.02,172.01,42.21795376]
[1748202264231,7.681015,172.02,172.01,42.21795376]
[1748202264430,7.681015,172.02,172.01,123.71795376]
[1748202276775,12.03188305,172.02,172.01,123.71795376]
[1748202278365,7.681015,172.02,172.01,123.71795376]
[1748202280269,7.681015,172.02,172.01,107.5]
[1748202280573,7.681015,172.02,172.01,123.71795376]
[1748202284876,7.681015,172.02,172.01,107.5]
[1748202285060,7.681015,172.02,172.01,123.71795376]
[1748202292180,7.681015,172.02,172.01,97.71795376]
[1748202299161,12.03442121,172.02,172.01,97.71795376]
[1748202299981,7.681015,172.02,172.01,97.71795376]
[1748202302387,7.681015,172.02,172.01,103.67373081]
[1748202302586,7.681015,172.02,172.01,97.71795376]
[1748202303073,4.3435866,172.02,172.01,97.71795376]
[1748202303265,4.3435866,172.02,172.01,123.71795376]
[1748202303466,2.17596176,172.07,172.01,123.71795376]
[1748202303669,2.17596176,172.07,172.04,16.21795376]
[1748202303887,3.34173699,172.06,172.04,16.21795376]
[1748202304676,4.34977121,172.05,172.04,16.21795376]
[1748202305184,7.6915082,172.05,172.04,16.21795376]
[1748202305362,7.6915082,172.05,172.03,16.21795376]
[1748202306567,7.6915082,172.04,172.03,16.21795376]
[1748202306992,7.6915082,172.04,172.03,26.0]
[1748202307170,7.6915082,172.04,172.03,42.21795376]
[1748202307372,7.6915082,172.04,172.02,16.21795376]
[1748202307776,4.34977121,172.04,172.02,16.21795376]
[1748202308294,4.34977121,172.03,172.02,16.21795376]
[1748202309496,7.68984543,172.03,172.02,16.21795376]
[1748202312591,7.68984543,172.03,172.01,107.5]
[1748202312893,7.68984543,172.03,172.02,16.21795376]
[1748202313195,3.34007422,172.03,172.02,16.21795376]
[1748202314297,7.68874472,172.03,172.02,16.21795376]
[1748202317485,7.68874472,172.03,172.01,16.21795376]
[1748202317692,4.3486705,172.02,172.01,16.21795376]
[1748202329410,4.3486705,172.02,171.99,107.5]
[1748202329600,4.3486705,172.02,172.01,16.21795376]
[1748202330613,4.3486705,172.02,172.0,16.21795376]
[1748202331114,4.3486705,172.01,172.0,16.21795376]
[1748202333311,4.3486705,172.01,171.99,107.5]
[1748202333495,53.48964886,172.04,172.0,16.21795376]
[1748202334610,4.34973577,172.03,172.0,16.21795376]
[1748202334802,12.04020564,172.03,172.0,16.21795376]
[1748202335002,12.04020564,172.03,171.99,107.5]
[1748202335203,12.04020564,172.03,172.0,16.21795376]
[1748202335513,8.69947154,172.02,172.0,16.21795376]
[1748202336192,8.69947154,172.02,171.99,16.21795376]
[1748202336416,4.34973577,172.02,171.99,16.21795376]
[1748202336719,4.34973577,172.01,171.99,16.21795376]
[1748202337609,4.34973577,172.0,171.99,16.21795376]
[1748202344819,4.34973577,172.0,171.98,107.5]
[1748202345017,4.34973577,172.0,171.99,16.21795376]
[1748202346998,4.34973577,172.0,171.95,5.81550681]
[1748202346999,4.34973577,172.0,171.97,26.0]
[1748202347330,51.05795376,172.04,171.99,16.21795376]
[1748202347625,51.05795376,172.04,171.99,97.71795376]
[1748202347802,4.34826677,172.03,171.99,97.71795376]
[1748202348214,7.68754444,172.03,171.99,97.71795376]
[1748202348426,4.34828945,172.02,171.99,97.71795376]
[1748202349830,4.34828945,172.01,171.99,97.71795376]
[1748202350806,4.34828945,172.0,171.99,97.71795376]
[1748202363136,4.34828945,172.0,171.99,81.5]
[1748202363337,4.34828945,172.0,171.99,97.71795376]
[1748202387550,4.34828945,172.0,171.99,81.5]
[1748202387847,7.69252974,172.0,171.98,16.21795376]
[1748202388236,4.34828945,171.99,171.97,107.5]
[1748202388934,4.17217537,172.03,171.97,107.5]
[1748202389159,6.53119329,172.02,171.97,107.5]
[1748202389455,6.53119329,172.02,171.99,16.21795376]
[1748202389657,4.35402248,172.01,171.99,16.21795376]
[1748202389868,7.69799634,172.01,172.0,16.21795376]
[1748202390168,7.69799634,172.01,171.97,107.5]
[1748202390348,7.69799634,172.01,171.98,16.21795376]
[1748202390663,4.35402248,172.0,171.98,16.21795376]
[1748202391167,4.35402248,172.0,171.98,97.71795376]
[1748202391657,4.35402248,171.99,171.98,97.71795376]
[1748202402167,4.35402248,171.99,171.98,81.5]
[1748202402945,4.35402248,171.99,171.98,16.21795376]
[1748202404269,4.35402248,171.99,171.97,123.71795376]
[1748202404475,4.35402248,171.98,171.97,123.71795376]
[1748202407963,4.35402248,171.98,171.97,107.5]
[1748202408160,4.35402248,171.98,171.97,97.71795376]
[1748202426263,3.33895943,172.01,171.97,97.71795376]
[1748202426466,3.33895943,172.01,171.99,16.21795376]
[1748202427288,4.34794007,172.0,171.99,16.21795376]
[1748202429412,4.34794007,172.0,171.99,97.71795376]
[1748202430067,7.68797136,172.0,171.99,97.71795376]
[1748202431588,4.34794007,172.0,171.99,97.71795376]
[1748202440811,8.69839603,172.0,171.99,97.71795376]
[1748202441106,12.039612,172.0,171.99,97.71795376]
[1748202442616,4.34794007,172.0,171.99,97.71795376]
[1748202445314,12.04007598,172.0,171.99,97.71795376]
[1748202445613,12.04007598,172.0,171.99,81.5]
[1748202445821,12.04007598,172.0,171.99,97.71795376]
[1748202448721,12.04007598,172.0,171.99,81.5]
[1748202449314,14.21561791,172.0,171.99,81.5]
[1748202453016,14.21561791,172.0,171.96,16.21795376]
[1748202453220,34.86,171.99,171.96,16.21795376]
[1748202453521,3.3414292,171.98,171.96,16.21795376]
[1748202453709,3.3414292,171.98,171.95,81.5]
[1748202453909,39.20794007,171.97,171.94,81.5]
[1748202454503,4.34794007,171.96,171.94,81.5]
[1748202455009,7.68936927,171.96,171.94,97.71795376]
[1748202455525,4.34794007,171.95,171.94,97.71795376]
[1748202458826,4.34794007,171.95,171.94,16.21795376]
[1748202460914,34.86,171.97,171.94,16.21795376]
[1748202461814,4.34403275,171.96,171.94,16.21795376]
[1748202462726,34.86,171.97,171.94,16.21795376]
[1748202464335,4.34320915,171.96,171.94,16.21795376]
[1748202464709,4.34320915,171.96,171.89,114.1627]
[1748202465037,4.34320915,171.96,171.94,16.21795376]
[1748202465332,4.34320915,171.95,171.94,16.21795376]
[1748202466525,34.86,171.97,171.94,16.21795376]
[1748202467127,4.34203266,171.96,171.94,16.21795376]
[1748202467849,4.34203266,171.95,171.94,16.21795376]
[1748202469810,34.86,171.97,171.94,16.21795376]
[1748202470411,4.3408957,171.96,171.94,16.21795376]
[1748202470825,7.67481365,171.96,171.94,16.21795376]
[1748202471330,4.3408957,171.95,171.94,16.21795376]
[1748202473631,34.86,171.97,171.92,26.0]
[1748202473817,34.86,171.97,171.94,16.21795376]
[1748202474230,4.34033703,171.96,171.94,16.21795376]
[1748202474722,4.34033703,171.96,171.89,88.1627]
[1748202474933,4.34033703,171.96,171.93,16.21795376]
[1748202475337,4.34033703,171.95,171.93,16.21795376]
[1748202475639,7.67403311,171.95,171.93,16.21795376]
[1748202476243,3.33369608,171.95,171.93,16.21795376]
[1748202476948,34.86,171.97,171.93,16.21795376]
[1748202477241,4.34004575,171.96,171.93,16.21795376]
[1748202477841,4.34004575,171.95,171.93,16.21795376]
[1748202478841,34.86,171.97,171.93,16.21795376]
[1748202479328,3.33328137,171.96,171.93,16.21795376]
[1748202480742,34.86,171.97,171.93,16.21795376]
[1748202481325,4.3405424,171.96,171.93,16.21795376]
[1748202482547,4.3405424,171.95,171.93,16.21795376]
[1748202483146,34.86,171.97,171.93,16.21795376]
[1748202484445,4.3415035,171.96,171.93,16.21795376]
[1748202485349,4.3415035,171.96,171.92,26.0]
[1748202485541,4.3415035,171.95,171.93,16.21795376]
[1748202486549,34.86,171.97,171.93,16.21795376]
[1748202487053,3.33525036,171.96,171.93,16.21795376]
[1748202487235,7.67792724,171.96,171.93,16.21795376]
[1748202487949,3.33525036,171.96,171.93,16.21795376]
[1748202488145,3.33525036,171.95,171.93,16.21795376]
[1748202488753,3.33525036,171.95,171.92,26.0]
[1748202489046,3.33525036,171.95,171.93,16.21795376]
[1748202489234,4.34397232,171.94,171.93,16.21795376]
[1748202490749,4.34397232,171.94,171.92,42.21795376]
[1748202491327,34.86,171.97,171.92,42.21795376]
[1748202491543,34.86,171.97,171.93,16.21795376]
[1748202492255,8.69328382,171.96,171.93,16.21795376]
[1748202492755,3.33911393,171.95,171.93,16.21795376]
[1748202493356,4.34664191,171.94,171.93,16.21795376]
[1748202494255,7.68575584,171.94,171.93,16.21795376]
[1748202494948,7.68575584,171.94,171.92,42.21795376]
[1748202495150,4.34664191,171.93,171.92,42.21795376]
[1748202498360,7.68896173,171.93,171.92,42.21795376]
[1748202502964,7.68896173,171.93,171.89,81.5]
[1748202503165,7.68896173,171.93,171.91,16.21795376]
[1748202504162,4.34664191,171.92,171.91,16.21795376]
[1748202504543,7.68896173,171.92,171.91,16.21795376]
[1748202507870,7.68896173,171.92,171.89,107.5]
[1748202508168,7.68896173,171.92,171.91,16.21795376]
[1748202508967,7.68896173,171.92,171.91,97.71795376]
[1748202530395,7.68896173,171.92,171.91,26.0]
[1748202530564,7.68896173,171.92,171.91,42.21795376]
[1748202530883,12.04097128,171.92,171.91,42.21795376]
[1748202537075,12.04097128,171.92,171.91,26.0]
[1748202537382,12.04097128,171.92,171.91,42.21795376]
[1748202562803,12.04097128,171.92,171.91,129.53495102]
[1748202563008,4.17217537,171.94,171.91,164.53711259]
[1748202563192,4.17217537,171.94,171.93,42.21795376]
[1748202563494,8.35058372,171.99,171.93,235.66011533]
[1748202563683,8.35058372,171.99,171.98,16.21795376]
[1748202565297,34.86,172.04,171.98,16.21795376]
[1748202565510,34.86,172.04,171.96,107.5]
[1748202565511,34.86,172.04,172.01,16.21795376]
[1748202570512,18.64964886,172.05,172.01,16.21795376]
[1748202584429,1.5943,172.07,172.03,16.21795376]
[1748202584632,20.80893734,172.09,172.05,16.21795376]
[1748202585019,24.12560225,172.09,172.05,16.21795376]
[1748202585221,4.31852529,172.08,172.05,16.21795376]
[1748202586113,21.96631377,172.09,172.05,16.21795376]
[1748202586515,18.64964886,172.09,172.05,16.21795376]
[1748202588637,22.68835376,172.1,172.05,16.21795376]
[1748202588824,16.21795376,172.1,172.05,16.21795376]
[1748202589542,4.28280997,172.09,172.05,16.21795376]
[1748202590427,1.6182,172.11,172.06,16.21795376]
[1748202591442,5.89903295,172.11,172.06,16.21795376]
[1748202593437,4.28083295,172.11,172.06,16.21795376]
[1748202593647,52.01795376,172.12,172.07,16.21795376]
[1748202594320,52.01795376,172.12,172.06,16.21795376]
[1748202596542,16.21795376,172.11,172.06,16.21795376]
[1748202597341,16.21795376,172.11,172.06,97.71795376]
[1748202597642,52.01795376,172.12,172.06,97.71795376]
[1748202598356,35.8,172.12,172.06,97.71795376]
[1748202598519,52.01795376,172.12,172.06,97.71795376]
[1748202600817,4.28443367,172.11,172.06,97.71795376]
[1748202601012,34.86760262,172.1,172.06,81.5]
[1748202601230,16.21795376,172.08,172.02,107.5]
[1748202601626,16.21795376,172.08,172.03,16.21795376]
[1748202606953,20.51697972,172.07,172.01,16.21795376]
[1748202607131,16.21795376,172.06,172.01,16.21795376]
[1748202608241,4.29902596,172.05,172.0,159.49795376]
[1748202608426,8.6371514,172.05,172.0,159.49795376]
[1748202609117,4.29902596,172.05,172.0,159.49795376]
[1748202609322,16.21795376,172.06,172.0,159.49795376]
[1748202609751,16.21795376,172.05,172.0,159.49795376]
[1748202610428,4.30591612,172.04,172.0,159.49795376]
[1748202611328,16.21795376,172.05,172.0,159.49795376]
[1748202612026,4.33927928,172.04,172.0,159.49795376]
[1748202613260,16.21795376,172.05,172.0,159.49795376]
[1748202613550,16.21795376,172.05,172.0,143.28]
[1748202613847,16.21795376,172.06,172.0,143.28]
[1748202614033,8.64677956,172.05,172.0,143.28]
[1748202614650,4.33985031,172.04,172.0,143.28]
[1748202614847,4.33985031,172.04,172.0,107.5]
[1748202615353,4.33985031,172.04,172.0,26.0]
[1748202615732,4.33985031,172.03,172.0,26.0]
[1748202616030,8.64730493,172.03,172.0,26.0]
[1748202616750,4.30745462,172.03,172.0,26.0]
[1748202616931,4.30745462,172.02,172.0,26.0]
[1748202617855,16.21795376,172.04,172.0,26.0]
[1748202618545,34.84,172.05,172.0,26.0]
[1748202618728,51.05795376,172.05,172.0,26.0]
[1748202618929,4.34022095,172.04,172.0,26.0]
[1748202619338,4.30719637,172.03,172.0,26.0]
[1748202620050,4.34022095,172.02,172.0,26.0]
[1748202621242,2.16985423,172.04,172.0,26.0]
[1748202621955,4.33963599,172.03,172.0,26.0]
[1748202622761,4.30673375,172.02,172.0,26.0]
[1748202623567,34.84,172.05,172.0,26.0]
[1748202623935,4.33942226,172.04,172.0,26.0]
[1748202624357,4.30663479,172.03,172.0,26.0]
[1748202624661,8.64605705,172.03,172.01,16.21795376]
[1748202624833,8.64605705,172.03,172.02,16.21795376]
[1748202625346,8.64605705,172.03,172.02,97.71795376]
[1748202625347,4.33942226,172.03,172.02,97.71795376]
[1748202625549,35.78,172.06,172.02,97.71795376]
[1748202625760,35.78,172.06,172.03,16.21795376]
[1748202625975,34.84,172.08,172.03,16.21795376]
[1748202626340,4.30637936,172.07,172.03,16.21795376]
[1748202626657,4.33916632,172.06,172.03,16.21795376]
[1748202627073,9.84123816,172.06,172.03,16.21795376]
[1748202627361,4.33916632,172.05,172.03,16.21795376]
[1748202627660,8.64554568,172.05,172.03,16.21795376]
[1748202628440,8.64554568,172.04,172.03,16.21795376]
[1748202629763,8.64554568,172.04,172.03,97.71795376]
[1748202631172,4.30637936,172.04,172.03,129.53089336]
[1748202631354,4.30637936,172.04,172.03,123.71795376]
[1748202631851,4.30637936,172.07,172.03,129.53089336]
[1748202632167,4.30637936,172.07,172.06,16.21795376]
[1748202632341,4.30637936,172.07,172.06,97.71795376]
[1748202632753,39.00561052,172.11,172.06,97.71795376]
[1748202632958,4.33860308,172.1,172.07,16.21795376]
[1748202633359,6.50790462,172.1,172.07,16.21795376]
[1748202633666,3.33193271,172.09,172.07,16.21795376]
[1748202633965,8.64384878,172.08,172.07,16.21795376]
[1748202635153,4.33860308,172.08,172.07,16.21795376]
[1748202635333,4.33860308,172.11,172.07,16.21795376]
[1748202635537,4.33860308,172.11,172.1,16.21795376]
[1748202635753,7.66934106,172.11,172.1,16.21795376]
[1748202636345,11.97265395,172.11,172.1,16.21795376]
[1748202636763,7.63405087,172.11,172.1,16.21795376]
[1748202636971,3.33073798,172.11,172.1,16.21795376]
[1748202637571,60.84,172.15,172.1,16.21795376]
[1748202637870,4.30103199,172.14,172.1,16.21795376]
[1748202638073,4.33436444,172.13,172.1,16.21795376]
[1748202638674,4.33436444,172.13,172.11,16.21795376]
[1748202638873,4.30103199,172.14,172.11,16.21795376]
[1748202639058,4.30103199,172.12,172.11,16.21795376]
[1748202639853,4.30103199,172.12,172.1,16.21795376]
[1748202640775,3.32720633,172.14,172.1,16.21795376]
[1748202641269,3.32720633,172.13,172.1,16.21795376]
[1748202642961,3.32720633,172.14,172.1,16.21795376]
[1748202643471,8.62560124,172.13,172.1,16.21795376]
[1748202644169,4.29640932,172.13,172.1,16.21795376]
[1748202644977,42.21795376,172.15,172.1,16.21795376]
[1748202645160,4.32856935,172.14,172.1,16.21795376]
[1748202645778,4.32856935,172.14,172.11,16.21795376]
[1748202645960,4.32856935,172.14,172.06,81.5]
[1748202645961,4.32856935,172.14,172.12,16.21795376]
[1748202646973,7.6517859,172.15,172.12,16.21795376]
[1748202647653,4.29622306,172.14,172.12,16.21795376]
[1748202648373,4.29622306,172.14,172.13,16.21795376]
[1748202648792,4.29622306,172.15,172.13,16.21795376]
[1748202649258,4.29622306,172.15,172.14,16.21795376]
[1748202649778,4.29622306,172.15,172.13,97.71795376]
[1748202650275,4.32468566,172.16,172.13,97.71795376]
[1748202650678,7.64790221,172.17,172.13,97.71795376]
[1748202651163,4.32468566,172.17,172.13,97.71795376]
[1748202651361,4.29076545,172.16,172.13,97.71795376]
[1748202651864,4.29076545,172.16,172.13,16.21795376]
[1748202653484,4.32468566,172.17,172.13,16.21795376]
[1748202654683,8.613674,172.17,172.13,16.21795376]
[1748202655761,8.613674,172.17,172.15,16.21795376]
[1748202656260,4.28898834,172.17,172.15,16.21795376]
[1748202656763,4.28898834,172.19,172.15,16.21795376]
[1748202657682,8.6058832,172.19,172.16,16.21795376]
[1748202658476,8.6058832,172.19,172.17,16.21795376]
[1748202658782,4.31689486,172.19,172.17,16.21795376]
[1748202658965,4.31689486,172.19,172.12,31.80988859]
[1748202658966,4.31689486,172.19,172.15,26.0]
[1748202659173,4.31689486,172.19,172.18,16.21795376]
[1748202659577,3.31477837,172.2,172.18,16.21795376]
[1748202659781,3.31477837,172.2,172.19,16.21795376]
[1748202660574,4.29756101,172.23,172.19,16.21795376]
[1748202661188,8.61194749,172.23,172.19,16.21795376]
[1748202665578,24.82990125,172.23,172.15,107.5]
[1748202665887,16.21795376,172.22,172.17,16.21795376]
[1748202667888,16.21795376,172.22,172.16,16.21795376]
[1748202668274,16.21795376,172.21,172.16,16.21795376]
[1748202668888,3.31201164,172.25,172.15,107.5]
[1748202668889,3.31201164,172.25,172.17,16.21795376]
[1748202669192,16.21795376,172.23,172.17,16.21795376]
[1748202669773,16.21795376,172.23,172.18,16.21795376]
[1748202670299,20.50993607,172.22,172.17,16.21795376]
[1748202670973,20.50993607,172.22,172.17,97.71795376]
[1748202671175,16.21795376,172.22,172.17,97.71795376]
[1748202672796,16.21795376,172.23,172.17,97.71795376]
[1748202673693,16.21795376,172.22,172.17,97.71795376]
[1748202674484,16.21795376,172.2,172.17,81.5]
[1748202674684,16.21795376,172.19,172.17,81.5]
[1748202676275,21.9616605,172.23,172.17,81.5]
[1748202676276,16.21795376,172.18,172.17,81.5]
[1748202676478,16.21795376,172.18,172.13,26.0]
[1748202676686,16.21795376,172.17,172.13,81.5]
[1748202677172,16.21795376,172.18,172.13,81.5]
[1748202677792,18.64964886,172.2,172.13,81.5]
[1748202677793,20.51773001,172.17,172.13,81.5]
[1748202678094,29.58543374,172.17,172.13,81.5]
[1748202678789,25.28565749,172.17,172.13,81.5]
[1748202680901,25.28565749,172.18,172.13,106.78565749]
[1748202681300,28.59766913,172.19,172.13,106.78565749]
[1748202681598,4.30382343,172.17,172.13,106.78565749]
[1748202682979,4.30382343,172.16,172.13,81.5]
[1748202684104,3.31201164,172.17,172.13,81.5]